fUSD/lending_fUSD_20240906
["ID","MTS","AMOUNT","RATE_DAILY","PERIOD"]
[337385881,1725636634351,-500.0,0.00043,120]
[337385882,1725636634404,-500.0,0.00043,120]
[337385883,1725636634461,-500.0,0.00043,120]
[337385884,1725636634516,-500.0,0.00043,120]
[337385885,1725636634572,-500.0,0.00043,120]
[337385886,1725636634628,-500.0,0.00043,120]
[337385887,1725636634686,-500.0,0.00043,120]
[337385888,1725636634741,-500.0,0.00043,120]
[337385889,1725636634790,-500.0,0.00043,120]
[337385890,1725636634844,-500.0,0.00043,120]
[337385891,1725636634895,-500.0,0.00043,120]
[337385892,1725636634948,-500.0,0.00043,120]
[337385893,1725636635002,-500.0,0.00043,120]
[337385894,1725636635055,-564.0,0.00043,120]
[337385895,1725636635104,-457.19517917,0.00043,30]
[337385896,1725636635159,-500.0,0.00043,120]
[337385897,1725636635211,-500.0,0.00043,120]
[337385898,1725636635264,-500.0,0.00043,120]
[337385899,1725636635316,-500.0,0.00043,120]
[337385900,1725636635366,-500.0,0.00043,120]
[337385901,1725636635417,-500.0,0.00043,120]
[337385902,1725636635468,-500.0,0.00043,120]
[337385903,1725636635520,-500.0,0.00043,120]
[337385904,1725636635570,-500.0,0.00043,120]
[337385905,1725636635626,-500.0,0.00043,120]
[337385906,1725636635676,-602.0,0.00043,120]
[337385907,1725636635732,-2637.13,0.00043,60]
[337385908,1725636635793,-500000.0,0.00043,120]
[337385910,1725636635850,-2010.47262808,0.00043,120]
[337385914,1725636635904,-15000.0,0.00043,120]
[337385920,1725636635961,-632090.08995025,0.00043,120]
[337385967,1725636636672,-235.88,0.00012777,2]
[337385969,1725636636682,-63.37245189,0.000129,2]
[337385971,1725636636694,-99.88410972,0.000129,2]
[337385972,1725636636703,-988.81736382,0.000129,2]
[337385973,1725636636716,-6.16862119,0.000129,2]
[337385974,1725636636726,-152.41,0.0001299,2]
[337385975,1725636636737,-152.41,0.0001299,2]
[337385976,1725636636747,-152.41,0.0001299,2]
[337385977,1725636636757,-152.41,0.0001299,2]
[337385978,1725636636766,-152.41,0.0001299,2]
[337385979,1725636636776,-152.41,0.0001299,2]
[337385980,1725636636785,-152.41,0.0001299,2]
[337385981,1725636636795,-152.41,0.0001299,2]
[337385982,1725636636805,-152.41,0.0001299,2]
[337385983,1725636636815,-152.41,0.0001299,2]
[337385984,1725636636824,-202.05770887,0.0001299,2]
[337385985,1725636636833,-1386.33921994,0.00013,2]
[337385986,1725636636845,-27216.47756135,0.00013,2]
[337385987,1725636636857,-1500.0,0.00013,2]
[337385988,1725636636874,-1476.78718249,0.00013,2]
[337385989,1725636636885,-116199.9999995,0.00013,2]
[337385990,1725636636896,-704.13017135,0.00013,2]
[337385991,1725636636908,-2007.54784577,0.00013,2]
[337385992,1725636636972,-1012.2128544,0.00013,2]
[337385993,1725636636993,-11542.95732777,0.00013,2]
[337386013,1725636638025,-384.39986476,0.00013,2]
[337386015,1725636638037,-540.65367802,0.00013,2]
[337386019,1725636638079,-6617.10566176,0.00013,2]
[337386021,1725636638090,-12676.6618561,0.00013,2]
[337386024,1725636638101,-1214.52265281,0.00013,2]
[337386026,1725636638112,-546.89635,0.00013,2]
[337386028,1725636638123,-364.55288824,0.00013,2]
[337386029,1725636638238,-1824.99,0.00013,2]
[337386030,1725636638249,-371.85965912,0.00013,2]
[337386031,1725636638260,-545.545,0.00013,2]
[337386032,1725636638272,-7788.25740484,0.00013,2]
[337386033,1725636638292,-11071.74888671,0.00013,2]
[337386034,1725636638303,-54500.0,0.00013,2]
[337386035,1725636638315,-541.21067,0.00013,2]
[337386036,1725636638326,-5431.426,0.00013,2]
[337386038,1725636638462,-1231.76374629,0.00013,2]
[337386208,1725636640152,-40435.81690446,0.00013,2]
[337386216,1725636640219,-3108.0,0.00013,2]
[337386218,1725636640230,-834.30484756,0.00013,2]
[337386220,1725636640244,-547396.00848512,0.00013,2]
[337386257,1725636640595,-296312.77757718,0.00013,2]
[337386259,1725636640605,-2368.03,0.00013,2]
[337386261,1725636640614,-802144.41781122,0.00013,2]
[337386263,1725636640624,-500.0,0.00013014,2]
[337386265,1725636640633,-159.0,0.00013037,2]
[337386267,1725636640643,-174.37,0.00013041,2]
[337386269,1725636640652,-503.86,0.00013057,2]
[337386271,1725636640663,-1548.95,0.00013068,2]
[337386274,1725636640672,-503.32,0.000131,2]
[337386275,1725636640682,-3451.5180482,0.00013155,2]
[337386278,1725636640692,-152.41,0.00013188,2]
[337386280,1725636640703,-124135.44938738,0.00013198,2]
[337386281,1725636640713,-3451.5180482,0.00013373,2]
[337386283,1725636640723,-1142.47439936,0.00013383,2]
[337386286,1725636640733,-348.72,0.0001339,2]
[337386301,1725636640872,-448.334,0.0001339,2]
[337386303,1725636640882,-163.25656161,0.000134,2]
[337386305,1725636640891,-545.64,0.0001342,2]
[337386307,1725636640901,-545.64,0.00013423,2]
[337386309,1725636640910,-545.64,0.00013427,2]
[337386311,1725636640919,-545.64,0.0001343,2]
[337386313,1725636640928,-545.64,0.00013434,2]
[337386315,1725636640938,-545.64,0.00013437,2]
[337386317,1725636640947,-545.64,0.00013441,2]
[337386319,1725636640956,-545.64,0.00013445,2]
[337386321,1725636640967,-545.64,0.00013448,2]
[337386323,1725636640977,-242.455,0.00013448,2]
[337386325,1725636640986,-545.64,0.00013452,2]
[337386327,1725636640997,-545.64,0.00013455,2]
[337386328,1725636641007,-545.64,0.00013459,2]
[337386330,1725636641016,-545.64,0.00013462,2]
[337386332,1725636641025,-185.63,0.00013463,2]
[337386335,1725636641035,-545.64,0.00013466,2]
[337386336,1725636641045,-545.64,0.00013469,2]
[337386338,1725636641055,-152.41,0.0001347,2]
[337386340,1725636641063,-152.41,0.0001347,2]
[337386342,1725636641073,-152.41,0.0001347,2]
[337386344,1725636641082,-152.41,0.0001347,2]
[337386346,1725636641091,-202.05770887,0.0001347,2]
[337386348,1725636641101,-152.41,0.0001347,2]
[337386350,1725636641110,-152.41,0.0001347,2]
[337386352,1725636641119,-152.41,0.0001347,2]
[337386354,1725636641128,-152.41,0.0001347,2]
[337386356,1725636641138,-184.92995837,0.00013473,2]
[337386358,1725636641147,-545.64,0.00013473,2]
[337386360,1725636641157,-545.64,0.00013476,2]
[337386362,1725636641166,-545.64,0.0001348,2]
[337386364,1725636641175,-1126676.34502737,0.0001348,2]
[337386366,1725636641184,-545.64,0.00013483,2]
[337386368,1725636641193,-545.64,0.00013487,2]
[337386370,1725636641203,-1000.0,0.00013487,2]
[337386372,1725636641212,-13419.95382316,0.000135,2]
[337386374,1725636641222,-1000.0,0.000135,2]
[337386376,1725636641231,-3451.5180482,0.00013591,2]
[337386378,1725636641242,-1092.9,0.000136,2]
[337386380,1725636641252,-451.12,0.00013699,2]
[337386382,1725636641261,-200.0,0.00013699,2]
[337386384,1725636641271,-301.15,0.00013699,2]
[337386386,1725636641280,-177.01,0.00013699,2]
[337386388,1725636641289,-500.0,0.00013699,2]
[337386390,1725636641299,-2751.0,0.00013699,2]
[337386392,1725636641309,-250.0,0.000137,2]
[337386394,1725636641319,-250.0,0.000137,2]
[337386396,1725636641328,-152.41,0.0001379,2]
[337386398,1725636641338,-152.41,0.0001379,2]
[337386400,1725636641348,-16936.68436421,0.00013799,2]
[337386402,1725636641357,-325428.913193,0.000138,3]
[337386404,1725636641366,-3451.5180482,0.00013809,2]
[337386406,1725636641375,-152.41,0.0001389,2]
[337386408,1725636641385,-152.41,0.0001389,2]
[337386410,1725636641395,-175.18324583,0.000139,2]
[337386412,1725636641404,-284517.29813,0.000139,3]
[337386414,1725636641414,-163.25656161,0.000139,2]
[337386416,1725636641423,-1126.84766022,0.00013999,2]
[337386418,1725636641433,-150.0,0.00014,2]
[337386420,1725636641442,-3451.5180482,0.00014028,2]
[337386422,1725636641452,-171.0,0.000141,2]
[337386424,1725636641462,-1142.47439934,0.00014142,2]
[337386426,1725636641472,-242.455,0.00014154,2]
[337386428,1725636641482,-532.33,0.00014192,2]
[337386430,1725636641493,-1600.0,0.000142,5]
[337386432,1725636641504,-3451.5180482,0.00014246,2]
[337386434,1725636641514,-2000.0,0.000143,5]
[337386436,1725636641524,-451.12,0.00014384,2]
[337386438,1725636641534,-163.25656161,0.000144,2]
[337386440,1725636641544,-400.0,0.000144,5]
[337386442,1725636641553,-3451.5180482,0.00014464,2]
[337386444,1725636641563,-400.0,0.000145,5]
[337386446,1725636641572,-213.5177932,0.00014533,2]
[337386448,1725636641582,-400.0,0.000146,5]
[337386450,1725636641592,-13357.9253,0.0001468,2]
[337386452,1725636641602,-3451.5180482,0.00014682,2]
[337386454,1725636641612,-152.41,0.00014684,2]
[337386456,1725636641622,-8039.5438,0.00014694,2]
[337386458,1725636641632,-172.76901356,0.00014694,2]
[337386460,1725636641642,-400.0,0.000147,5]
[337386462,1725636641651,-152.41,0.00014765,2]
[337386464,1725636641660,-500.0,0.00014773,2]
[337386466,1725636641670,-150.0,0.00014773,2]
[337386468,1725636641679,-183582.97458758,0.00014775,2]
[337386470,1725636641689,-152.41,0.0001478,2]
[337386472,1725636641699,-152.41,0.0001478,2]
[337386474,1725636641708,-152.41,0.0001478,2]
[337386476,1725636641718,-152.41,0.00014784,2]
[337386478,1725636641727,-152.41,0.00014784,2]
[337386479,1725636641737,-988.0,0.0001479,2]
[337386481,1725636641752,-537501.96748,0.0001479,5]
[337386484,1725636641762,-500.0,0.00014794,2]
[337386486,1725636641771,-500.0,0.00014794,2]
[337386488,1725636641781,-500.0,0.00014794,2]
[337386489,1725636641791,-500.0,0.00014794,2]
[337386491,1725636641800,-500.0,0.00014794,2]
[337386493,1725636641810,-508.54799781,0.00014794,2]
[337386495,1725636641819,-500.0,0.00014794,2]
[337386497,1725636641829,-500.0,0.00014794,2]
[337386499,1725636641839,-500.0,0.00014794,2]
[337386501,1725636641849,-500.0,0.00014794,2]
[337386503,1725636641858,-500.0,0.00014794,2]
[337386505,1725636641868,-500.0,0.00014794,2]
[337386507,1725636641878,-197.34083564,0.00014794,2]
[337386509,1725636641888,-500.0,0.00014794,2]
[337386511,1725636641897,-500.0,0.00014794,2]
[337386513,1725636641907,-360.4026919,0.00014794,2]
[337386515,1725636641916,-500.0,0.00014794,2]
[337386517,1725636641926,-500.0,0.00014794,2]
[337386519,1725636641935,-500.0,0.00014794,2]
[337386520,1725636641945,-500.0,0.00014794,2]
[337386522,1725636641954,-500.0,0.00014794,2]
[337386524,1725636641966,-500.0,0.00014794,2]
[337386526,1725636641978,-500.0,0.00014794,2]
[337386528,1725636641988,-500.0,0.00014794,2]
[337386530,1725636642008,-500.0,0.00014794,2]
[337386532,1725636642019,-500.0,0.00014794,2]
[337386533,1725636642029,-500.0,0.00014794,2]
[337386534,1725636642039,-500.0,0.00014794,2]
[337386535,1725636642052,-500.0,0.00014794,2]
[337386536,1725636642062,-500.0,0.00014794,2]
[337386537,1725636642071,-500.0,0.00014794,2]
[337386538,1725636642080,-361.13803372,0.00014794,2]
[337386539,1725636642089,-500.0,0.00014794,2]
[337386540,1725636642098,-500.0,0.00014794,2]
[337386541,1725636642108,-500.0,0.00014794,2]
[337386542,1725636642117,-500.0,0.00014794,2]
[337386543,1725636642126,-500.0,0.00014794,2]
[337386544,1725636642135,-500.0,0.00014794,2]
[337386545,1725636642144,-500.0,0.00014794,2]
[337386546,1725636642155,-500.0,0.00014794,2]
[337386548,1725636642164,-500.0,0.00014794,2]
[337386550,1725636642174,-500.0,0.00014794,2]
[337386551,1725636642183,-500.0,0.00014794,2]
[337386552,1725636642193,-500.0,0.00014794,2]
[337386554,1725636642203,-500.0,0.00014794,2]
[337386556,1725636642212,-500.0,0.00014794,2]
[337386558,1725636642223,-500.0,0.00014794,2]
[337386559,1725636642233,-500.0,0.00014794,2]
[337386562,1725636642247,-500.0,0.00014794,2]
[337386564,1725636642256,-500.0,0.00014794,2]
[337386566,1725636642266,-500.0,0.00014794,2]
[337386568,1725636642276,-547.75390586,0.00014794,2]
[337386570,1725636642286,-500.0,0.00014794,2]
[337386572,1725636642295,-500.0,0.00014794,2]
[337386574,1725636642306,-500.0,0.00014794,2]
[337386576,1725636642316,-500.0,0.00014794,2]
[337386578,1725636642325,-500.0,0.00014794,2]
[337386580,1725636642335,-500.0,0.00014794,2]
[337386582,1725636642348,-500.0,0.00014794,2]
[337386584,1725636642358,-431.86024566,0.00014794,2]
[337386586,1725636642367,-499.4253677,0.00014794,2]
[337386588,1725636642377,-500.0,0.00014794,2]
[337386590,1725636642387,-500.0,0.00014794,2]
[337386592,1725636642397,-500.0,0.00014794,2]
[337386594,1725636642406,-500.0,0.00014794,2]
[337386595,1725636642416,-500.0,0.00014794,2]
[337386597,1725636642426,-500.0,0.00014794,2]
[337386599,1725636642435,-500.0,0.00014794,2]
[337386601,1725636642445,-500.0,0.00014794,2]
[337386603,1725636642455,-500.0,0.00014794,2]
[337386605,1725636642465,-500.0,0.00014794,2]
[337386607,1725636642475,-500.0,0.00014794,2]
[337386609,1725636642484,-500.0,0.00014794,2]
[337386611,1725636642496,-500.0,0.00014794,2]
[337386613,1725636642506,-500.0,0.00014794,2]
[337386615,1725636642515,-500.0,0.00014794,2]
[337386617,1725636642525,-500.0,0.00014794,2]
[337386619,1725636642535,-500.0,0.00014794,2]
[337386621,1725636642546,-500.0,0.00014794,2]
[337386623,1725636642555,-500.0,0.00014794,2]
[337386625,1725636642565,-500.0,0.00014794,2]
[337386627,1725636642575,-500.0,0.00014794,2]
[337386629,1725636642584,-500.0,0.00014794,2]
[337386631,1725636642594,-500.0,0.00014794,2]
[337386633,1725636642604,-500.0,0.00014794,2]
[337386635,1725636642613,-806.25,0.00014794,2]
[337386637,1725636642623,-806.25,0.00014794,2]
[337386639,1725636642632,-806.25,0.00014794,2]
[337386641,1725636642642,-806.25,0.00014794,2]
[337386642,1725636642651,-806.25,0.00014794,2]
[337386644,1725636642660,-500.0,0.00014794,2]
[337386646,1725636642670,-500.0,0.00014794,2]
[337386648,1725636642680,-500.0,0.00014794,2]
[337386650,1725636642690,-500.0,0.00014794,2]
[337386652,1725636642700,-500.0,0.00014794,2]
[337386654,1725636642710,-500.0,0.00014794,2]
[337386656,1725636642720,-500.0,0.00014794,2]
[337386658,1725636642730,-500.0,0.00014794,2]
[337386660,1725636642741,-500.0,0.00014794,2]
[337386662,1725636642751,-500.0,0.00014794,2]
[337386664,1725636642760,-500.0,0.00014794,2]
[337386666,1725636642770,-500.0,0.00014794,2]
[337386668,1725636642779,-500.0,0.00014794,2]
[337386670,1725636642789,-500.0,0.00014794,2]
[337386672,1725636642798,-500.0,0.00014794,2]
[337386674,1725636642808,-500.0,0.00014794,2]
[337386676,1725636642818,-500.0,0.00014794,2]
[337386678,1725636642828,-500.0,0.00014794,2]
[337386680,1725636642838,-500.0,0.00014794,2]
[337386682,1725636642848,-500.0,0.00014794,2]
[337386685,1725636642857,-500.0,0.00014794,2]
[337386688,1725636642867,-500.0,0.00014794,2]
[337386690,1725636642876,-500.0,0.00014794,2]
[337386693,1725636642886,-500.0,0.00014794,2]
[337386695,1725636642896,-500.0,0.00014794,2]
[337386698,1725636642906,-500.0,0.00014794,2]
[337386700,1725636642916,-500.0,0.00014794,2]
[337386703,1725636642925,-189.83279908,0.00014794,2]
[337386707,1725636642935,-500.0,0.00014794,2]
[337386710,1725636642945,-500.0,0.00014794,2]
[337386712,1725636642954,-500.0,0.00014794,2]
[337386714,1725636642965,-500.0,0.00014794,2]
[337386716,1725636642976,-500.0,0.00014794,2]
[337386718,1725636642986,-500.0,0.00014794,2]
[337386720,1725636642998,-500.0,0.00014794,2]
[337386722,1725636643009,-500.0,0.00014794,2]
[337386724,1725636643018,-500.0,0.00014794,2]
[337386726,1725636643027,-500.0,0.00014794,2]
[337386728,1725636643036,-500.0,0.00014794,2]
[337386730,1725636643048,-500.0,0.00014794,2]
[337386732,1725636643058,-500.0,0.00014794,2]
[337386734,1725636643067,-860.91,0.00014794,2]
[337386736,1725636643076,-500.0,0.00014794,2]
[337386738,1725636643086,-860.91,0.00014794,2]
[337386740,1725636643095,-500.0,0.00014794,2]
[337386742,1725636643104,-860.91,0.00014794,2]
[337386744,1725636643114,-860.91,0.00014794,2]
[337386746,1725636643124,-860.91,0.00014794,2]
[337386749,1725636643136,-512.88,0.00014794,2]
[337386752,1725636643146,-512.88,0.00014794,2]
[337386755,1725636643156,-512.88,0.00014794,2]
[337386758,1725636643165,-512.88,0.00014794,2]
[337386760,1725636643175,-512.88,0.00014794,2]
[337386762,1725636643184,-500.0,0.00014794,2]
[337386764,1725636643193,-500.0,0.00014794,2]
[337386766,1725636643203,-500.0,0.00014794,2]
[337386768,1725636643213,-500.0,0.00014794,2]
[337386770,1725636643222,-500.0,0.00014794,2]
[337386772,1725636643232,-500.0,0.00014794,2]
[337386774,1725636643244,-500.0,0.00014794,2]
[337386776,1725636643254,-505.05802615,0.00014794,2]
[337386778,1725636643264,-500.0,0.00014794,2]
[337386780,1725636643274,-500.0,0.00014794,2]
[337386782,1725636643283,-500.0,0.00014794,2]
[337386784,1725636643292,-500.0,0.00014794,2]
[337386786,1725636643302,-500.0,0.00014794,2]
[337386788,1725636643311,-500.0,0.00014794,2]
[337386790,1725636643321,-500.0,0.00014794,2]
[337386791,1725636643331,-500.0,0.00014794,2]
[337386793,1725636643341,-500.0,0.00014794,2]
[337386796,1725636643350,-500.0,0.00014794,2]
[337386798,1725636643360,-529.19442452,0.00014794,2]
[337386800,1725636643370,-500.0,0.00014794,2]
[337386802,1725636643379,-500.0,0.00014794,2]
[337386804,1725636643388,-500.0,0.00014794,2]
[337386806,1725636643399,-500.0,0.00014794,2]
[337386808,1725636643409,-500.0,0.00014794,2]
[337386810,1725636643419,-500.0,0.00014794,2]
[337386812,1725636643428,-500.0,0.00014794,2]
[337386814,1725636643439,-500.0,0.00014794,2]
[337386816,1725636643449,-566.2,0.00014794,2]
[337386818,1725636643459,-500.0,0.00014794,2]
[337386820,1725636643470,-500.0,0.00014794,2]
[337386822,1725636643480,-9260.05,0.00014794,2]
[337386824,1725636643492,-9260.05,0.00014794,2]
[337386826,1725636643501,-9260.05,0.00014794,2]
[337386828,1725636643511,-9260.05,0.00014794,2]
[337386830,1725636643520,-9260.05,0.00014794,2]
[337386832,1725636643529,-500.0,0.00014794,2]
[337386834,1725636643540,-500.0,0.00014794,2]
[337386835,1725636643550,-500.0,0.00014794,2]
[337386837,1725636643559,-500.0,0.00014794,2]
[337386839,1725636643569,-629.44,0.00014794,2]
[337386842,1725636643579,-629.44,0.00014794,2]
[337386843,1725636643589,-629.44,0.00014794,2]
[337386845,1725636643598,-629.44,0.00014794,2]
[337386847,1725636643608,-601.80021762,0.00014794,2]
[337386849,1725636643617,-604.6,0.00014794,2]
[337386851,1725636643627,-604.6,0.00014794,2]
[337386853,1725636643637,-604.6,0.00014794,2]
[337386855,1725636643647,-604.6,0.00014794,2]
[337386857,1725636643656,-500.0,0.00014794,2]
[337386859,1725636643666,-500.0,0.00014794,2]
[337386861,1725636643675,-500.0,0.00014794,2]
[337386863,1725636643685,-500.0,0.00014794,2]
[337386891,1725636643943,-176.85345657,0.00014794,2]
[337386893,1725636643962,-163.26948865,0.00014794,2]
[337386895,1725636643976,-540.2,0.00014794,2]
[337386897,1725636643986,-540.2,0.00014794,2]
[337386900,1725636644000,-540.2,0.00014794,2]
[337386901,1725636644010,-540.2,0.00014794,2]
[337386903,1725636644020,-540.2,0.00014794,2]
[337386905,1725636644029,-540.2,0.00014794,2]
[337386907,1725636644039,-540.2,0.00014794,2]
[337386909,1725636644052,-540.2,0.00014794,2]
[337386911,1725636644063,-540.2,0.00014794,2]
[337386913,1725636644073,-540.2,0.00014794,2]
[337386915,1725636644083,-540.2,0.00014794,2]
[337386917,1725636644093,-540.2,0.00014794,2]
[337386920,1725636644102,-500.0,0.00014794,2]
[337386922,1725636644112,-500.0,0.00014794,2]
[337386924,1725636644122,-500.0,0.00014794,2]
[337386926,1725636644131,-500.0,0.00014794,2]
[337386928,1725636644142,-500.0,0.00014794,2]
[337386930,1725636644152,-500.0,0.00014794,2]
[337386932,1725636644161,-500.0,0.00014794,2]
[337386934,1725636644171,-500.0,0.00014794,2]
[337386936,1725636644180,-500.0,0.00014794,2]
[337386937,1725636644190,-1567.13,0.00014794,2]
[337386939,1725636644200,-1567.13,0.00014794,2]
[337386941,1725636644209,-1567.13,0.00014794,2]
[337386943,1725636644219,-1567.13,0.00014794,2]
[337386945,1725636644229,-500.0,0.00014794,2]
[337386947,1725636644242,-500.0,0.00014794,2]
[337386950,1725636644252,-500.0,0.00014794,2]
[337386952,1725636644262,-500.0,0.00014794,2]
[337386954,1725636644271,-500.0,0.00014794,2]
[337386956,1725636644282,-500.0,0.00014794,2]
[337386958,1725636644291,-500.0,0.00014794,2]
[337386960,1725636644301,-500.0,0.00014794,2]
[337386962,1725636644311,-500.0,0.00014794,2]
[337386964,1725636644321,-500.0,0.00014794,2]
[337386966,1725636644331,-500.0,0.00014794,2]
[337386968,1725636644341,-500.0,0.00014794,2]
[337386970,1725636644352,-500.0,0.00014794,2]
[337386972,1725636644362,-500.0,0.00014794,2]
[337386974,1725636644371,-500.0,0.00014794,2]
[337386976,1725636644381,-500.0,0.00014794,2]
[337386978,1725636644390,-500.0,0.00014794,2]
[337386980,1725636644400,-500.0,0.00014794,2]
[337386982,1725636644410,-500.0,0.00014794,2]
[337386984,1725636644420,-500.0,0.00014794,2]
[337386985,1725636644430,-500.0,0.00014794,2]
[337386987,1725636644440,-500.0,0.00014794,2]
[337386990,1725636644454,-500.0,0.00014794,2]
[337386992,1725636644465,-500.0,0.00014794,2]
[337386994,1725636644475,-500.0,0.00014794,2]
[337386996,1725636644485,-500.0,0.00014794,2]
[337386998,1725636644497,-500.0,0.00014794,2]
[337387000,1725636644507,-500.0,0.00014794,2]
[337387002,1725636644516,-500.0,0.00014794,2]
[337387004,1725636644526,-500.0,0.00014794,2]
[337387006,1725636644536,-500.0,0.00014794,2]
[337387008,1725636644547,-589.58862863,0.00014794,2]
[337387010,1725636644557,-500.0,0.00014794,2]
[337387012,1725636644567,-500.0,0.00014794,2]
[337387014,1725636644577,-500.0,0.00014794,2]
[337387016,1725636644587,-500.0,0.00014794,2]
[337387018,1725636644596,-153.29468776,0.00014794,2]
[337387020,1725636644607,-500.0,0.00014794,2]
[337387021,1725636644617,-500.0,0.00014794,2]
[337387022,1725636644627,-500.0,0.00014794,2]
[337387023,1725636644637,-304.05296306,0.00014794,2]
[337387024,1725636644646,-500.0,0.00014794,2]
[337387025,1725636644656,-500.0,0.00014794,2]
[337387027,1725636644666,-500.0,0.00014794,2]
[337387029,1725636644676,-500.0,0.00014794,2]
[337387031,1725636644687,-500.0,0.00014794,2]
[337387033,1725636644696,-500.0,0.00014794,2]
[337387035,1725636644706,-500.0,0.00014794,2]
[337387037,1725636644715,-500.0,0.00014794,2]
[337387039,1725636644725,-500.0,0.00014794,2]
[337387041,1725636644735,-500.0,0.00014794,2]
[337387043,1725636644745,-500.0,0.00014794,2]
[337387045,1725636644754,-500.0,0.00014794,2]
[337387047,1725636644764,-500.0,0.00014794,2]
[337387049,1725636644773,-500.0,0.00014794,2]
[337387051,1725636644783,-500.0,0.00014794,2]
[337387053,1725636644793,-1811.26,0.00014794,2]
[337387055,1725636644803,-1811.26,0.00014794,2]
[337387057,1725636644812,-1811.26,0.00014794,2]
[337387059,1725636644822,-1811.26,0.00014794,2]
[337387061,1725636644832,-500.0,0.00014794,2]
[337387063,1725636644841,-647.26,0.00014794,2]
[337387065,1725636644851,-500.0,0.00014794,2]
[337387067,1725636644862,-500.0,0.00014794,2]
[337387069,1725636644872,-500.0,0.00014794,2]
[337387071,1725636644881,-500.0,0.00014794,2]
[337387073,1725636644893,-500.0,0.00014794,2]
[337387075,1725636644902,-500.0,0.00014794,2]
[337387077,1725636644912,-500.0,0.00014794,2]
[337387079,1725636644922,-500.0,0.00014794,2]
[337387081,1725636644931,-500.0,0.00014794,2]
[337387083,1725636644941,-500.0,0.00014794,2]
[337387085,1725636644951,-793.0,0.000148,5]
[337387087,1725636644961,-11762.84213324,0.0001485,2]
[337387089,1725636644975,-188.5938,0.00014897,2]
[337387091,1725636644985,-503.91105784,0.000149,2]
[337387093,1725636644999,-175.18324582,0.000149,2]
[337387095,1725636645009,-3451.5180482,0.000149,2]
[337387097,1725636645018,-163.25656161,0.000149,2]
[337387099,1725636645028,-1142.47439934,0.000149,2]
[337387101,1725636645039,-242.455,0.00014934,2]
[337387103,1725636645048,-500.81940285,0.00014973,2]
[337387105,1725636645058,-500.0,0.00014973,2]
[337387107,1725636645067,-152.41,0.00014989,2]
[337387109,1725636645077,-500.0,0.00014989,2]
[337387111,1725636645086,-500.0,0.00014989,2]
[337387113,1725636645095,-806.25,0.00014989,2]
[337387115,1725636645104,-500.0,0.00014989,2]
[337387117,1725636645114,-500.0,0.00014989,2]
[337387119,1725636645123,-500.0,0.00014989,2]
[337387121,1725636645132,-860.91,0.00014989,2]
[337387122,1725636645141,-512.88,0.00014989,2]
[337387124,1725636645151,-500.0,0.00014989,2]
[337387126,1725636645160,-500.0,0.00014989,2]
[337387128,1725636645169,-9260.05,0.00014989,2]